fUSD/lending_fUSD_20250617
["ID","MTS","AMOUNT","RATE_DAILY","PERIOD"]
[366208665,1750121455755,-490.0,0.00016623,2]
[366208666,1750121455764,-490.0,0.00016623,2]
[366208667,1750121455774,-490.0,0.00016623,2]
[366208668,1750121455783,-490.0,0.00016623,2]
[366208669,1750121455793,-490.0,0.00016623,2]
[366208670,1750121455802,-548.35,0.00016623,2]
[366208671,1750121455812,-1908.77,0.00016623,2]
[366208672,1750121455822,-735.6,0.00016623,2]
[366208673,1750121455831,-841.52,0.00016623,2]
[366208674,1750121455841,-3101.21,0.00016623,2]
[366208675,1750121455851,-490.0,0.00016623,2]
[366208676,1750121455861,-490.0,0.00016623,2]
[366208677,1750121455871,-490.0,0.00016623,2]
[366208678,1750121455882,-484.250065,0.00016623,2]
[366208679,1750121455892,-490.0,0.00016623,2]
[366208680,1750121455902,-776.78,0.00016623,2]
[366208681,1750121455912,-490.0,0.00016623,2]
[366208682,1750121455922,-490.0,0.00016623,2]
[366208683,1750121455931,-490.0,0.00016623,2]
[366208684,1750121455942,-753.06,0.00016623,2]
[366208685,1750121455952,-490.0,0.00016623,2]
[366208686,1750121455962,-490.0,0.00016623,2]
[366208687,1750121455972,-490.0,0.00016623,2]
[366208688,1750121455982,-515.91,0.00016623,2]
[366208689,1750121455992,-566.87,0.00016623,2]
[366208690,1750121456001,-1243.6,0.00016623,2]
[366208691,1750121456011,-490.0,0.00016623,2]
[366208692,1750121456023,-490.0,0.00016623,2]
[366208693,1750121456033,-347.849634,0.00016623,2]
[366208694,1750121456043,-548.52,0.00016623,2]
[366208695,1750121456052,-284.13,0.00016623,2]
[366208696,1750121456063,-490.0,0.00016623,2]
[366208697,1750121456073,-1519.93,0.00016623,2]
[366208698,1750121456083,-200.0,0.00016624,2]
[366208699,1750121456092,-154.215121,0.00016624,2]
[366208700,1750121456103,-490.0,0.00016624,2]
[366208701,1750121456123,-288.06492131,0.00016624,2]
[366208702,1750121456136,-490.0,0.00016624,2]
[366208703,1750121456150,-490.0,0.00016624,2]
[366208704,1750121456161,-490.0,0.00016624,2]
[366208705,1750121456172,-490.0,0.00016624,2]
[366208706,1750121456183,-438.61008157,0.00016624,2]
[366208707,1750121456194,-151.0,0.00016624,2]
[366208708,1750121456204,-490.0,0.00016624,2]
[366208709,1750121456217,-490.0,0.00016624,2]
[366208710,1750121456227,-490.0,0.00016624,2]
[366208711,1750121456238,-490.0,0.00016624,2]
[366208712,1750121456249,-490.0,0.00016624,2]
[366208713,1750121456259,-490.0,0.00016624,2]
[366208714,1750121456270,-508.57411527,0.00016624,2]
[366208715,1750121456280,-490.0,0.00016624,2]
[366208716,1750121456290,-490.0,0.00016624,2]
[366208717,1750121456300,-490.0,0.00016624,2]
[366208718,1750121456310,-490.0,0.00016624,2]
[366208719,1750121456320,-490.0,0.00016624,2]
[366208720,1750121456331,-490.0,0.00016624,2]
[366208721,1750121456341,-490.0,0.00016624,2]
[366208722,1750121456351,-490.0,0.00016624,2]
[366208723,1750121456361,-490.0,0.00016624,2]
[366208724,1750121456371,-490.0,0.00016624,2]
[366208725,1750121456383,-490.0,0.00016624,2]
[366208726,1750121456395,-571.41,0.00016624,2]
[366208727,1750121456406,-490.0,0.00016624,2]
[366208728,1750121456416,-233.59,0.00016624,2]
[366208729,1750121456427,-490.0,0.00016624,2]
[366208730,1750121456438,-490.0,0.00016624,2]
[366208731,1750121456448,-490.0,0.00016624,2]
[366208732,1750121456459,-490.0,0.00016624,2]
[366208733,1750121456470,-490.0,0.00016624,2]
[366208734,1750121456480,-490.0,0.00016624,2]
[366208735,1750121456490,-490.0,0.00016624,2]
[366208736,1750121456501,-539.05,0.00016624,2]
[366208737,1750121456512,-569.0,0.00016624,2]
[366208738,1750121456522,-374.25038138,0.00016624,2]
[366208739,1750121456533,-226.51,0.00016624,2]
[366208740,1750121456543,-348.0,0.00016624,2]
[366208741,1750121456554,-207.29019,0.00016624,2]
[366208742,1750121456571,-207.29019,0.00016624,2]
[366208743,1750121456583,-490.0,0.00016624,2]
[366208744,1750121456593,-594.47,0.00016624,2]
[366208745,1750121456604,-490.0,0.00016624,2]
[366208746,1750121456616,-614.12,0.00016624,2]
[366208747,1750121456627,-490.0,0.00016624,2]
[366208748,1750121456639,-490.0,0.00016624,2]
[366208749,1750121456650,-490.0,0.00016624,2]
[366208750,1750121456661,-490.0,0.00016624,2]
[366208751,1750121456671,-490.0,0.00016624,2]
[366208752,1750121456682,-490.0,0.00016624,2]
[366208753,1750121456694,-490.0,0.00016624,2]
[366208754,1750121456705,-490.0,0.00016624,2]
[366208755,1750121456716,-490.0,0.00016624,2]
[366208756,1750121456727,-219.31,0.00016624,2]
[366208757,1750121456738,-490.0,0.00016624,2]
[366208758,1750121456749,-490.0,0.00016624,2]
[366208759,1750121456759,-431.11,0.00016624,2]
[366208760,1750121456769,-490.0,0.00016624,2]
[366208761,1750121456780,-490.0,0.00016624,2]
[366208762,1750121456791,-490.0,0.00016624,2]
[366208763,1750121456801,-490.0,0.00016624,2]
[366208764,1750121456812,-497.06505661,0.00016624,2]
[366208765,1750121456822,-151.0,0.00016624,2]
[366208766,1750121456832,-490.0,0.00016624,2]
[366208767,1750121456843,-490.0,0.00016624,2]
[366208768,1750121456853,-490.0,0.00016624,2]
[366208769,1750121456863,-490.0,0.00016624,2]
[366208770,1750121456875,-490.0,0.00016624,2]
[366208771,1750121456886,-490.0,0.00016624,2]
[366208772,1750121456896,-151.0,0.00016624,2]
[366208773,1750121456907,-439.37790966,0.00016624,2]
[366208774,1750121456917,-490.0,0.00016624,2]
[366208775,1750121456927,-490.0,0.00016624,2]
[366208776,1750121456937,-490.0,0.00016624,2]
[366208777,1750121456948,-490.0,0.00016624,2]
[366208778,1750121456958,-490.0,0.00016624,2]
[366208779,1750121456969,-151.0,0.00016624,2]
[366208780,1750121456979,-151.0,0.00016624,2]
[366208781,1750121456990,-647.72,0.00016624,2]
[366208782,1750121457007,-189.424294,0.00016624,2]
[366208783,1750121457017,-490.0,0.00016624,2]
[366208784,1750121457027,-523.0,0.00016624,2]
[366208785,1750121457037,-490.0,0.00016624,2]
[366208786,1750121457047,-294.83,0.00016624,2]
[366208787,1750121457057,-490.0,0.00016624,2]
[366208788,1750121457068,-490.0,0.00016624,2]
[366208789,1750121457079,-490.0,0.00016624,2]
[366208790,1750121457089,-490.0,0.00016624,2]
[366208791,1750121457099,-151.0,0.00016624,2]
[366208792,1750121457109,-490.0,0.00016624,2]
[366208793,1750121457119,-218.837209,0.00016624,2]
[366208794,1750121457130,-490.0,0.00016624,2]
[366208795,1750121457142,-490.0,0.00016624,2]
[366208796,1750121457152,-490.0,0.00016624,2]
[366208797,1750121457162,-490.0,0.00016624,2]
[366208798,1750121457172,-490.0,0.00016624,2]
[366208799,1750121457182,-490.0,0.00016624,2]
[366208800,1750121457192,-490.0,0.00016624,2]
[366208801,1750121457202,-490.0,0.00016624,2]
[366208802,1750121457212,-490.0,0.00016624,2]
[366208803,1750121457226,-490.0,0.00016624,2]
[366208804,1750121457237,-490.0,0.00016624,2]
[366208805,1750121457248,-490.0,0.00016624,2]
[366208806,1750121457258,-490.0,0.00016624,2]
[366208807,1750121457269,-634.04585504,0.00016624,2]
[366208808,1750121457278,-490.0,0.00016624,2]
[366208809,1750121457289,-490.0,0.00016624,2]
[366208810,1750121457299,-490.0,0.00016624,2]
[366208811,1750121457309,-490.0,0.00016624,2]
[366208812,1750121457319,-490.0,0.00016624,2]
[366208813,1750121457328,-490.0,0.00016624,2]
[366208814,1750121457338,-490.0,0.00016624,2]
[366208815,1750121457348,-559.53,0.00016624,2]
[366208816,1750121457358,-151.0,0.00016624,2]
[366208817,1750121457369,-490.0,0.00016624,2]
[366208818,1750121457380,-151.0,0.00016624,2]
[366208819,1750121457390,-428.68,0.00016624,2]
[366208820,1750121457400,-490.0,0.00016624,2]
[366208821,1750121457410,-490.0,0.00016624,2]
[366208822,1750121457420,-151.0,0.00016624,2]
[366208823,1750121457430,-490.0,0.00016624,2]
[366208824,1750121457441,-151.0,0.00016624,2]
[366208825,1750121457455,-490.0,0.00016624,2]
[366208826,1750121457465,-262.53,0.00016624,2]
[366208827,1750121457475,-490.0,0.00016624,2]
[366208828,1750121457485,-490.0,0.00016624,2]
[366208829,1750121457495,-294.14,0.00016624,2]
[366208830,1750121457506,-490.0,0.00016624,2]
[366208831,1750121457518,-490.0,0.00016624,2]
[366208832,1750121457528,-513.64,0.00016624,2]
[366208833,1750121457538,-298.38,0.00016624,2]
[366208834,1750121457548,-364.79,0.00016624,2]
[366208835,1750121457559,-490.0,0.00016624,2]
[366208836,1750121457569,-490.0,0.00016624,2]
[366208837,1750121457579,-1112.91,0.00016624,2]
[366208838,1750121457589,-490.0,0.00016624,2]
[366208839,1750121457599,-3007.57,0.00016624,2]
[366208840,1750121457758,-917.98,0.00016624,2]
[366208841,1750121457769,-490.0,0.00016624,2]
[366208842,1750121457780,-517.08,0.00016624,2]
[366208843,1750121457790,-490.0,0.00016624,2]
[366208844,1750121457799,-490.0,0.00016624,2]
[366208845,1750121457810,-490.0,0.00016624,2]
[366208846,1750121457820,-1158.41,0.00016624,2]
[366208847,1750121457830,-417.53,0.00016624,2]
[366208848,1750121457839,-490.0,0.00016624,2]
[366208849,1750121457849,-490.0,0.00016624,2]
[366208850,1750121457859,-661.22,0.00016624,2]
[366208851,1750121457868,-447.29,0.00016624,2]
[366208852,1750121457879,-525.98,0.00016624,2]
[366208853,1750121457888,-151.0,0.00016624,2]
[366208854,1750121457898,-180.45839,0.00016624,2]
[366208855,1750121457907,-1083.12,0.00016624,2]
[366208856,1750121457917,-290.298912,0.00016624,2]
[366208857,1750121457926,-490.0,0.00016624,2]
[366208858,1750121457936,-180.45839,0.00016624,2]
[366208859,1750121457945,-502.352401,0.00016624,2]
[366208860,1750121457955,-490.0,0.00016624,2]
[366208861,1750121457964,-502.352401,0.00016624,2]
[366208862,1750121457974,-490.0,0.00016624,2]
[366208863,1750121457983,-490.0,0.00016624,2]
[366208864,1750121457992,-527.97,0.00016624,2]
[366208865,1750121458002,-490.0,0.00016624,2]
[366208866,1750121458012,-3258.49,0.00016624,2]
[366208867,1750121458021,-1612.7,0.00016624,2]
[366208868,1750121458031,-490.0,0.00016624,2]
[366208869,1750121458040,-490.0,0.00016624,2]
[366208870,1750121458050,-490.0,0.00016624,2]
[366208871,1750121458059,-1562.33,0.00016624,2]
[366208872,1750121458069,-490.0,0.00016624,2]
[366208873,1750121458078,-937.38,0.00016624,2]
[366208874,1750121458088,-256.495271,0.00016624,2]
[366208875,1750121458097,-256.495271,0.00016624,2]
[366208876,1750121458106,-204.20028907,0.00016624,2]
[366208877,1750121458115,-490.0,0.00016624,2]
[366208878,1750121458127,-2272.9,0.00016624,2]
[366208879,1750121458137,-490.0,0.00016624,2]
[366208880,1750121458150,-490.0,0.00016624,2]
[366208881,1750121458159,-585.94,0.00016624,2]
[366208882,1750121458169,-490.0,0.00016624,2]
[366208883,1750121458179,-2682.34,0.00016624,2]
[366208884,1750121458189,-597.61,0.00016624,2]
[366208885,1750121458198,-490.0,0.00016624,2]
[366208886,1750121458207,-490.0,0.00016624,2]
[366208887,1750121458220,-461.47526773,0.00016624,2]
[366208888,1750121458230,-490.0,0.00016624,2]
[366208889,1750121458239,-490.0,0.00016624,2]
[366208890,1750121458249,-351.59549278,0.00016624,2]
[366208891,1750121458259,-495.41,0.00016624,2]
[366208892,1750121458269,-232.85100729,0.00016624,2]
[366208893,1750121458280,-490.0,0.00016624,2]
[366208894,1750121458290,-490.0,0.00016624,2]
[366208895,1750121458300,-151.0,0.00016624,2]
[366208896,1750121458311,-151.0,0.00016624,2]
[366208897,1750121458321,-490.0,0.00016624,2]
[366208898,1750121458331,-1350.07,0.00016624,2]
[366208899,1750121458341,-490.0,0.00016624,2]
[366208900,1750121458351,-490.0,0.00016624,2]
[366208901,1750121458361,-490.0,0.00016624,2]
[366208902,1750121458371,-490.0,0.00016624,2]
[366208903,1750121458386,-490.0,0.00016624,2]
[366208904,1750121458396,-490.0,0.00016624,2]
[366208905,1750121458406,-490.0,0.00016624,2]
[366208906,1750121458415,-490.0,0.00016624,2]
[366208907,1750121458425,-490.0,0.00016624,2]
[366208908,1750121458435,-3516.93,0.00016624,2]
[366208909,1750121458445,-151.0,0.00016624,2]
[366208910,1750121458454,-490.0,0.00016624,2]
[366208911,1750121458464,-649.52,0.00016624,2]
[366208912,1750121458474,-151.0,0.00016624,2]
[366208913,1750121458483,-151.0,0.00016624,2]
[366208914,1750121458493,-490.0,0.00016624,2]
[366208915,1750121458502,-490.0,0.00016624,2]
[366208916,1750121458512,-490.0,0.00016624,2]
[366208917,1750121458523,-185.72533,0.00016624,2]
[366208918,1750121458533,-490.0,0.00016624,2]
[366208919,1750121458543,-490.0,0.00016624,2]
[366208920,1750121458553,-644.27033933,0.00016624,2]
[366208921,1750121458563,-151.0,0.00016625,2]
[366208922,1750121458572,-151.0,0.00016625,2]
[366208923,1750121458581,-151.0,0.00016625,2]
[366208924,1750121458590,-151.0,0.00016625,2]
[366208925,1750121458600,-189.616018,0.00016625,2]
[366208926,1750121458610,-151.0,0.00016625,2]
[366208927,1750121458619,-151.0,0.00016625,2]
[366208928,1750121458632,-151.0,0.00016625,2]
[366208929,1750121458642,-151.0,0.00016625,2]
[366208930,1750121458651,-151.0,0.00016625,2]
[366208931,1750121458661,-151.0,0.00016625,2]
[366208932,1750121458671,-151.0,0.00016625,2]
[366208933,1750121458680,-151.0,0.00016625,2]
[366208934,1750121458690,-161.96985,0.00016626,2]
[366208935,1750121458699,-191.13455,0.00016626,2]
[366208936,1750121458709,-191.13455,0.00016626,2]
[366208937,1750121458719,-151.0,0.00016626,2]
[366208938,1750121458728,-151.0,0.00016626,2]
[366208939,1750121458738,-151.0,0.00016626,2]
[366208940,1750121458747,-151.0,0.00016626,2]
[366208941,1750121458757,-151.0,0.00016627,2]
[366208942,1750121458766,-417.0,0.00016628,3]
[366208943,1750121458777,-508.0,0.00016628,2]
[366208944,1750121458787,-150.0,0.00016628,2]
[366208945,1750121458797,-500.0,0.00016629,2]
[366208946,1750121458807,-500.0,0.00016629,2]
[366208947,1750121458816,-500.0,0.00016629,2]
[366208948,1750121458825,-500.0,0.00016629,2]
[366208949,1750121458836,-500.0,0.00016629,2]
[366208950,1750121458846,-500.0,0.00016629,2]
[366208951,1750121458855,-500.0,0.00016629,2]
[366208952,1750121458865,-500.0,0.00016629,2]
[366208953,1750121458876,-500.0,0.00016629,2]
[366208954,1750121458886,-567.86775989,0.00016629,2]
[366208955,1750121458895,-216.65253326,0.00016629,2]
[366208956,1750121458905,-331.14799993,0.00016629,2]
[366208957,1750121458914,-500.0,0.00016629,2]
[366208958,1750121458924,-529.23714659,0.00016629,2]
[366208959,1750121458933,-500.0,0.00016629,2]
[366208960,1750121458943,-500.0,0.00016629,2]
[366208961,1750121458952,-500.0,0.00016629,2]
[366208962,1750121458962,-500.0,0.00016629,2]
[366208963,1750121458972,-500.0,0.00016629,2]
[366208964,1750121458982,-500.0,0.00016629,2]
[366208965,1750121458991,-500.0,0.00016629,2]
[366208966,1750121459002,-500.0,0.00016629,2]
[366208967,1750121459011,-500.0,0.00016629,2]
[366208968,1750121459021,-500.0,0.00016629,2]
[366208969,1750121459031,-500.0,0.00016629,2]
[366208970,1750121459041,-500.0,0.00016629,2]
[366208971,1750121459050,-500.0,0.00016629,2]
[366208972,1750121459060,-226.66428417,0.00016629,2]
[366208973,1750121459069,-500.0,0.00016629,2]
[366208974,1750121459079,-500.0,0.00016629,2]
[366208975,1750121459089,-500.0,0.00016629,2]
[366208976,1750121459099,-500.0,0.00016629,2]
[366208977,1750121459109,-500.0,0.00016629,2]
[366208978,1750121459124,-500.0,0.00016629,2]
[366208979,1750121459136,-500.0,0.00016629,2]
[366208980,1750121459149,-500.0,0.00016629,2]
[366208981,1750121459159,-500.0,0.00016629,2]
[366208982,1750121459168,-500.0,0.00016629,2]
[366208983,1750121459177,-500.0,0.00016629,2]
[366208984,1750121459189,-500.0,0.00016629,2]
[366208985,1750121459198,-500.0,0.00016629,2]
[366208986,1750121459207,-500.0,0.00016629,2]
[366208987,1750121459217,-178.18469715,0.00016629,2]
[366208988,1750121459226,-500.0,0.00016629,2]
[366208989,1750121459236,-500.0,0.00016629,2]
[366208990,1750121459249,-500.0,0.00016629,2]
[366208991,1750121459258,-500.0,0.00016629,2]
[366208992,1750121459268,-500.0,0.00016629,2]
[366208993,1750121459277,-500.0,0.00016629,2]
[366208994,1750121459287,-500.0,0.00016629,2]
[366208995,1750121459297,-500.0,0.00016629,2]
[366208996,1750121459306,-500.0,0.00016629,2]
[366208997,1750121459316,-190.63409883,0.00016629,2]
[366208998,1750121459326,-500.0,0.00016629,2]
[366208999,1750121459337,-155.17381336,0.00016643,2]
[366209000,1750121459347,-151.0,0.00016649,2]
[366209001,1750121459356,-151.0,0.00016649,2]
[366209002,1750121459365,-151.0,0.00016649,2]
[366209003,1750121459375,-151.0,0.00016649,2]
[366209004,1750121459389,-151.0,0.00016649,2]
[366209005,1750121459399,-151.0,0.00016649,2]
[366209006,1750121459409,-151.0,0.00016649,2]
[366209007,1750121459418,-151.0,0.00016649,2]
[366209008,1750121459427,-151.0,0.00016649,2]
[366209009,1750121459436,-290.11644,0.00016649,2]
[366209010,1750121459446,-290.11644,0.00016649,2]
[366209011,1750121459455,-151.0,0.00016649,2]
[366209012,1750121459465,-151.0,0.00016649,2]
[366209013,1750121459475,-151.0,0.00016649,2]
[366209014,1750121459484,-151.0,0.00016649,2]
[366209015,1750121459493,-151.0,0.00016649,2]
[366209016,1750121459503,-417.0,0.00016655,3]
[366209017,1750121459512,-230.67812381,0.00016655,2]
[366209018,1750121459522,-644.27033933,0.00016659,2]
[366209019,1750121459531,-232.388996,0.0001666,2]
[366209020,1750121459541,-12994.34815863,0.00016665,2]
[366209021,1750121459550,-7033.04817479,0.00016665,2]
[366209022,1750121459560,-194.509006,0.00016665,2]
[366209023,1750121459569,-151.0,0.00016666,2]
[366209024,1750121459578,-168.0,0.00016677,2]
[366209025,1750121459588,-417.0,0.00016682,3]
[366209026,1750121459597,-467.48444349,0.00016683,2]
[366209027,1750121459608,-151.0,0.00016693,2]
[366209028,1750121459617,-151.0,0.00016693,2]
[366209029,1750121459629,-644.27033933,0.00016693,2]
[366209030,1750121459638,-164.46263279,0.00016699,2]
[366209031,1750121459648,-1001.2594,0.00016699,2]
[366209032,1750121459657,-180.8,0.000167,2]
[366209033,1750121459667,-1500.0,0.000167,6]
[366209034,1750121459677,-417.0,0.0001671,3]
[366209035,1750121459687,-190.6,0.00016712,2]
[366209036,1750121459696,-187.07,0.00016712,2]
[366209037,1750121459706,-166.38694766,0.00016724,2]
[366209038,1750121459715,-644.27033933,0.00016728,2]
[366209039,1750121459724,-571.73,0.0001673,2]
[366209040,1750121459734,-490.0,0.0001673,2]
[366209041,1750121459743,-490.0,0.0001673,2]
[366209042,1750121459753,-490.0,0.0001673,2]
[366209043,1750121459763,-622.62,0.0001673,2]
[366209044,1750121459772,-417.0,0.00016737,3]
[366209045,1750121459782,-12994.34815863,0.00016743,2]
[366209046,1750121459791,-7033.04817479,0.00016743,2]
[366209047,1750121459802,-2201.107593,0.00016749,2]
[366209048,1750121459812,-151.0,0.00016749,2]
[366209049,1750121459821,-151.0,0.00016749,2]
[366209050,1750121459831,-151.0,0.00016749,2]
[366209051,1750121459840,-151.0,0.00016749,2]
[366209052,1750121459850,-502.352401,0.00016749,2]
[366209053,1750121459859,-502.352401,0.00016749,2]
[366209054,1750121459869,-151.0,0.00016749,2]
[366209055,1750121459880,-151.0,0.00016749,2]
[366209056,1750121459890,-151.0,0.00016753,2]
[366209057,1750121459900,-151.0,0.00016753,2]
[366209058,1750121459909,-151.0,0.00016753,2]
[366209059,1750121459919,-644.27033933,0.00016762,2]
[366209060,1750121459928,-417.0,0.00016765,3]
[366209061,1750121459938,-168.0,0.00016766,2]
[366209062,1750121459949,-151.0,0.00016767,2]
[366209063,1750121459958,-7450.0,0.00016767,2]
[366209064,1750121459968,-1764.0,0.00016768,2]
[366209065,1750121459978,-207.29019,0.0001678,2]
[366209066,1750121459987,-207.29019,0.0001678,2]
[366209067,1750121459996,-151.0,0.0001678,2]
[366209068,1750121460006,-300.0,0.00016787,2]
[366209069,1750121460016,-490.0,0.00016787,2]
[366209070,1750121460026,-490.0,0.00016787,2]
[366209071,1750121460036,-490.0,0.00016787,2]
[366209072,1750121460046,-490.0,0.00016787,2]
[366209073,1750121460056,-629.63,0.00016787,2]
[366209074,1750121460066,-300.0,0.00016787,2]
[366209075,1750121460076,-490.0,0.00016787,2]
[366209076,1750121460086,-860.84,0.00016787,2]
[366209077,1750121460095,-644.22,0.00016787,2]
[366209078,1750121460105,-827.18,0.00016787,2]
[366209079,1750121460115,-564.53,0.00016787,2]
[366209080,1750121460125,-490.0,0.00016787,2]
[366209081,1750121460137,-500.0,0.00016787,2]
[366209082,1750121460150,-591.69,0.00016787,2]
[366209083,1750121460160,-300.0,0.00016787,2]
[366209084,1750121460170,-490.0,0.00016787,2]
[366209085,1750121460179,-1205.99,0.00016787,2]
[366209086,1750121460190,-490.0,0.00016787,2]
[366209087,1750121460201,-341.0,0.00016787,2]
[366209088,1750121460211,-490.0,0.00016787,2]
[366209089,1750121460221,-618.58,0.00016787,2]
[366209090,1750121460232,-490.0,0.00016787,2]
[366209091,1750121460242,-281.17,0.00016787,2]
[366209092,1750121460251,-572.49128165,0.00016787,2]
[366209093,1750121460262,-490.0,0.00016787,2]
[366209094,1750121460272,-490.0,0.00016787,2]
[366209095,1750121460281,-605.33,0.00016787,2]
[366209096,1750121460292,-879.86,0.00016787,2]
[366209097,1750121460302,-599.82624145,0.00016787,2]
[366209098,1750121460312,-1444.93,0.00016787,2]
[366209099,1750121460321,-733.14,0.00016787,2]
[366209100,1750121460331,-490.0,0.00016787,2]
[366209101,1750121460340,-613.33,0.00016787,2]
[366209102,1750121460349,-887.26,0.00016787,2]
[366209103,1750121460359,-654.63,0.00016787,2]
[366209104,1750121460368,-300.0,0.00016787,2]
[366209105,1750121460381,-428.68275005,0.00016787,2]
[366209106,1750121460390,-490.0,0.00016787,2]
[366209107,1750121460400,-490.0,0.00016787,2]
[366209108,1750121460410,-490.0,0.00016787,2]
[366209109,1750121460419,-548.35,0.00016787,2]
[366209110,1750121460429,-1908.77,0.00016787,2]
[366209111,1750121460438,-735.6,0.00016787,2]
[366209112,1750121460448,-841.52,0.00016787,2]
[366209113,1750121460458,-3101.21,0.00016787,2]
[366209114,1750121460469,-490.0,0.00016787,2]
[366209115,1750121460479,-490.0,0.00016787,2]
[366209116,1750121460489,-490.0,0.00016787,2]
[366209117,1750121460499,-484.250065,0.00016787,2]
[366209118,1750121460508,-490.0,0.00016787,2]
[366209119,1750121460518,-776.78,0.00016787,2]
[366209120,1750121460528,-490.0,0.00016787,2]
[366209121,1750121460537,-490.0,0.00016787,2]
[366209122,1750121460548,-490.0,0.00016787,2]
[366209123,1750121460558,-753.06,0.00016787,2]
[366209124,1750121460568,-490.0,0.00016787,2]
[366209125,1750121460577,-490.0,0.00016787,2]
[366209126,1750121460587,-490.0,0.00016787,2]
[366209127,1750121460596,-515.91,0.00016787,2]
[366209128,1750121460606,-490.0,0.00016787,2]
[366209129,1750121460615,-490.0,0.00016787,2]
[366209130,1750121460625,-1243.6,0.00016787,2]
[366209131,1750121460637,-490.0,0.00016787,2]
[366209132,1750121460647,-335.4,0.00016787,2]
[366209133,1750121460657,-490.0,0.00016787,2]
[366209134,1750121460666,-347.849634,0.00016787,2]
[366209135,1750121460676,-490.0,0.00016787,2]
[366209136,1750121460687,-548.52,0.00016787,2]
[366209137,1750121460697,-490.0,0.00016787,2]
[366209138,1750121460706,-490.0,0.00016787,2]
[366209139,1750121460716,-1519.93,0.00016787,2]
[366209140,1750121460726,-168.0,0.00016788,2]
[366209141,1750121460735,-151.0,0.00016788,2]
[366209142,1750121460747,-151.0,0.00016788,2]
[366209143,1750121460759,-557.9,0.00016788,2]
[366209144,1750121460768,-490.0,0.00016788,2]
[366209145,1750121460778,-490.0,0.00016788,2]
[366209146,1750121460787,-490.0,0.00016788,2]
[366209147,1750121460797,-490.0,0.00016788,2]
[366209148,1750121460807,-551.07,0.00016788,2]
[366209149,1750121460816,-151.0,0.00016788,2]
[366209150,1750121460827,-490.0,0.00016788,2]
[366209151,1750121460836,-508.71,0.00016788,2]
[366209152,1750121460846,-490.0,0.00016788,2]
[366209153,1750121460855,-391.56,0.00016788,2]
[366209154,1750121460865,-490.0,0.00016788,2]
[366209155,1750121460875,-490.0,0.00016788,2]
[366209156,1750121460888,-490.0,0.00016788,2]
[366209157,1750121460898,-490.0,0.00016788,2]
[366209158,1750121460908,-490.0,0.00016788,2]
[366209159,1750121460918,-175.36,0.00016788,2]
[366209160,1750121460928,-222.96,0.00016788,2]
[366209161,1750121460938,-490.0,0.00016788,2]
[366209162,1750121460947,-490.0,0.00016788,2]
[366209163,1750121460957,-209.46,0.00016788,2]
[366209164,1750121460967,-355.9,0.00016788,2]